fUST/lending_fUST_20260423
["ID","MTS","AMOUNT","RATE_DAILY","PERIOD"]
[421023006,1776939038687,-513.05949585,0.00014963,2]
[421023008,1776939038696,-500.0,0.00014963,2]
[421023010,1776939038707,-500.0,0.00014963,2]
[421023012,1776939038716,-500.0,0.00014963,2]
[421023014,1776939038726,-215.71294798,0.00014963,2]
[421023016,1776939038735,-500.0,0.00014963,2]
[421023018,1776939038744,-500.0,0.00014963,2]
[421023019,1776939038753,-500.0,0.00014963,2]
[421023021,1776939038762,-500.0,0.00014963,2]
[421023022,1776939038771,-500.0,0.00014963,2]
[421023024,1776939038780,-485.79699369,0.00014963,2]
[421023026,1776939038793,-14.20300631,0.00014963,2]
[421023027,1776939038802,-500.0,0.00014963,2]
[421023029,1776939038812,-500.0,0.00014963,2]
[421023030,1776939038821,-500.0,0.00014963,2]
[421023032,1776939038830,-500.0,0.00014963,2]
[421023033,1776939038840,-500.0,0.00014963,2]
[421023034,1776939038849,-500.0,0.00014963,2]
[421023035,1776939038859,-500.0,0.00014963,2]
[421023036,1776939038868,-500.0,0.00014963,2]
[421023037,1776939038878,-500.0,0.00014963,2]
[421023038,1776939038889,-500.0,0.00014963,2]
[421023039,1776939038899,-500.0,0.00014963,2]
[421023040,1776939038909,-500.0,0.00014963,2]
[421023041,1776939038919,-500.0,0.00014963,2]
[421023042,1776939038928,-500.0,0.00014963,2]
[421023043,1776939038938,-489.43546447,0.00014963,2]
[421023077,1776939040617,-10.56453553,0.00014963,2]
[421023079,1776939040627,-449.27238777,0.00014963,2]
[421023081,1776939040637,-500.0,0.00014963,2]
[421023083,1776939040646,-500.0,0.00014963,2]
[421023085,1776939040655,-500.0,0.00014963,2]
[421023087,1776939040665,-500.0,0.00014963,2]
[421023089,1776939040674,-500.0,0.00014963,2]
[421023091,1776939040683,-500.0,0.00014963,2]
[421023093,1776939040692,-500.0,0.00014963,2]
[421023095,1776939040702,-222.28420239,0.00014963,2]
[421023194,1776939043645,-277.71579761,0.00014963,2]
[421023195,1776939043654,-500.0,0.00014963,2]
[421023196,1776939043664,-500.0,0.00014963,2]
[421023197,1776939043673,-500.0,0.00014963,2]
[421023198,1776939043682,-500.0,0.00014963,2]
[421023199,1776939043692,-177.66789373,0.00014963,2]
[421023218,1776939046261,-322.33210627,0.00014963,2]
[421023219,1776939046271,-500.0,0.00014963,2]
[421023220,1776939046281,-500.0,0.00014963,2]
[421023221,1776939046291,-415.19336039,0.00014963,2]
[421023222,1776939046301,-350.55678695,0.00014963,2]
[421023223,1776939046310,-500.0,0.00014963,2]
[421023224,1776939046319,-500.0,0.00014963,2]
[421023225,1776939046329,-500.0,0.00014963,2]
[421023226,1776939046339,-300.0,0.00014963,2]
[421023227,1776939046348,-500.0,0.00014963,2]
[421023228,1776939046357,-7401.88621148,0.00014964,2]
[421023229,1776939046367,-375.94234955,0.00015249,2]
[421023230,1776939046379,-44.05765045,0.00015249,2]
[421023231,1776939046388,-177.0,0.00015293,2]
[421023232,1776939046398,-7605.43368889,0.00015364,2]
[421023233,1776939046408,-7669.23260844,0.00015464,2]
[421023234,1776939046417,-420.0,0.00015622,2]
[421023235,1776939046428,-1680.0,0.00015688,2]
[421023236,1776939046437,-204.0,0.00017293,2]
[421023237,1776939046447,-296.62197707,0.00017387,2]
[421023238,1776939046457,-160.0,0.00017742,2]
[421023239,1776939046466,-500.0,0.00018296,2]
[421023240,1776939046475,-152.0,0.00018568,7]
[421023241,1776939046485,-500.0,0.00018668,2]
[421023242,1776939046494,-500.0,0.0001904,2]
[421023243,1776939046503,-231.0,0.00019293,2]
[421023244,1776939046513,-500.0,0.00019412,2]
[421023245,1776939046522,-184.0,0.00019793,2]
[421023246,1776939046531,-1116.0,0.0002,2]
[421023247,1776939046541,-212.0,0.0002,2]
[421023248,1776939046550,-162.9949699,0.0002,2]
[421023249,1776939046559,-151.0,0.00020608,2]
[421023250,1776939046569,-25355.36,0.00020734,10]
[421023251,1776939046578,-77251.63866305,0.00020754,2]
[421023252,1776939046587,-150.6421436,0.00020864,2]
[421023253,1776939046597,-9480.7427696,0.00020864,2]
[421023254,1776939046606,-1639.7,0.000209,2]
[421023255,1776939046615,-385.0,0.00021,2]
[421023256,1776939046625,-213.0,0.00021,2]
[421023257,1776939046634,-1116.0,0.00021,2]
[421023258,1776939046644,-212.0,0.00021,2]
[421023259,1776939046654,-268.364,0.00021034,2]
[421023260,1776939046663,-500.0,0.00021324,2]
[421023261,1776939046672,-519.55788972,0.00021324,2]
[421023262,1776939046682,-151.5,0.00021324,2]
[421023263,1776939046693,-151.5,0.00021324,2]
[421023264,1776939046703,-151.5,0.00021324,2]
[421023265,1776939046712,-151.5,0.00021324,2]
[421023266,1776939046721,-250.0511073,0.00021324,2]
[421023267,1776939046730,-584.0,0.00021324,2]
[421023268,1776939046739,-584.0,0.00021324,2]
[421023269,1776939046749,-584.0,0.00021324,2]
[421023270,1776939046758,-584.0,0.00021324,2]
[421023271,1776939046768,-584.0,0.00021324,2]
[421023272,1776939046777,-584.0,0.00021324,2]
[421023273,1776939046786,-584.0,0.00021324,2]
[421023274,1776939046795,-584.0,0.00021324,2]
[421023275,1776939046805,-584.0,0.00021324,2]
[421023276,1776939046814,-584.0,0.00021324,2]
[421023277,1776939046823,-584.0,0.00021324,2]
[421023278,1776939046832,-584.0,0.00021324,2]
[421023279,1776939046842,-584.0,0.00021324,2]
[421023280,1776939046852,-584.0,0.00021324,2]
[421023281,1776939046861,-584.0,0.00021324,2]
[421023282,1776939046870,-584.0,0.00021324,2]
[421023283,1776939046879,-584.0,0.00021324,2]
[421023284,1776939046889,-584.0,0.00021324,2]
[421023285,1776939046898,-151.5,0.00021324,2]
[421023286,1776939046907,-151.5,0.00021324,2]
[421023287,1776939046916,-584.0,0.00021324,2]
[421023288,1776939046925,-151.5,0.00021324,2]
[421023289,1776939046934,-155.13103591,0.00021324,2]
[421023290,1776939046944,-584.0,0.00021324,2]
[421023291,1776939046953,-584.0,0.00021324,2]
[421023292,1776939046962,-584.0,0.00021324,2]
[421023293,1776939046971,-584.0,0.00021324,2]
[421023294,1776939046980,-585.76781311,0.00021324,2]
[421023295,1776939046989,-500.0,0.00021324,2]
[421023296,1776939046998,-500.0,0.00021324,2]
[421023297,1776939047008,-500.0,0.00021324,2]
[421023298,1776939047017,-500.0,0.00021324,2]
[421023299,1776939047027,-500.0,0.00021324,2]
[421023300,1776939047036,-500.0,0.00021324,2]
[421023301,1776939047046,-500.0,0.00021324,2]
[421023302,1776939047055,-500.0,0.00021324,2]
[421023303,1776939047064,-354.04982798,0.00021324,2]
[421023304,1776939047080,-145.95017202,0.00021324,2]
[421023305,1776939047089,-474.76476499,0.00021324,2]
[421023306,1776939047098,-7099.28506299,0.000214,2]
[421023307,1776939047338,-907.88036448,0.000214,2]
[421023308,1776939047349,-569.37999998,0.000214,2]
[421023309,1776939047365,-1556.27187458,0.000214,2]
[421023310,1776939047375,-500.0,0.00021411,2]
[421023311,1776939047384,-2076.53526254,0.00021495,2]
[421023312,1776939747620,175.0,0.00019178,120]
[421023313,1776939938135,-2793.18292521,0.00013393,2]
[421023314,1776939938159,-150.0,0.00013528,2]
[421023315,1776939938179,-1000.0,0.00013699,2]
[421023316,1776939938202,-177.0,0.00015528,2]
[421023317,1776939938222,-204.0,0.00017528,2]
[421023318,1776939938242,-160.0,0.00017701,2]
[421023319,1776939938262,-74.97981613,0.00017741,2]
[421023320,1776939956073,696.26,0.00024658,120]
[421023337,1776940232085,-958.5,0.00013699,2]
[421023338,1776940232146,-41.5,0.00013699,2]
[421023339,1776940232156,-244.99435378,0.00018458,2]
[421023340,1776940232165,-150.0,0.00018536,2]
[421023341,1776940232175,-555.4847888,0.00019332,30]
[421023342,1776940232184,-312.1069716,0.00019332,30]
[421023343,1776940232194,-155.0472122,0.00019332,30]
[421023344,1776940232203,-152.0,0.00019395,7]
[421023345,1776940232213,-152.0,0.00019395,7]
[421023346,1776940232222,-152.0,0.00019395,7]
[421023347,1776940232231,-152.0,0.00019395,7]
[421023348,1776940232241,-1200.0,0.00019998,2]
[421023349,1776940232251,-300.0,0.00019999,2]
[421023350,1776940232260,-60.44433608,0.00019999,2]
[421023524,1776940238338,-239.55566392,0.00019999,2]
[421023526,1776940238352,-184.0,0.0002,2]
[421023527,1776940238362,-451.18,0.0002,2]
[421023528,1776940238372,-347.0,0.0002,2]
[421023529,1776940238382,-191.0,0.0002,2]
[421023530,1776940238391,-1004.0,0.0002,2]
[421023531,1776940238402,-537.6845,0.0002031,2]
[421023532,1776940238411,-425.06442059,0.00020365,2]
[421023533,1776940238421,-177.0,0.00020536,2]
[421023534,1776940238430,-184.0,0.000206,2]
[421023535,1776940238440,-184.0,0.00021,2]
[421023536,1776940238450,-347.0,0.00021,2]
[421023537,1776940238460,-191.0,0.00021,2]
[421023538,1776940238469,-1004.0,0.00021,2]
[421023539,1776940238479,-300.0,0.00021,2]
[421023540,1776940238490,-270.0,0.00021068,3]
[421023541,1776940238501,-14631.94645213,0.00021159,2]
[421023542,1776940238511,-206.85234461,0.00021192,2]
[421023543,1776940238521,-21129.47,0.00021249,10]
[421023544,1776940238532,-1834.90046588,0.00021258,2]
[421023545,1776940238543,-1834.90046588,0.00021258,2]
[421023546,1776940238555,-1834.90046588,0.00021258,2]
[421023547,1776940238565,-1834.90046588,0.00021258,2]
[421023548,1776940238575,-1834.90046588,0.00021258,2]
[421023549,1776940238585,-1834.90046588,0.00021258,2]
[421023550,1776940238596,-1834.90046588,0.00021258,2]
[421023551,1776940238606,-1834.90046588,0.00021258,2]
[421023552,1776940238616,-1834.90046588,0.00021258,2]
[421023553,1776940238627,-1834.90046588,0.00021258,2]
[421023554,1776940238638,-1834.90046588,0.00021258,2]
[421023555,1776940238648,-1834.90046588,0.00021258,2]
[421023556,1776940238659,-1834.90046588,0.00021258,2]
[421023557,1776940238670,-1834.90046588,0.00021258,2]
[421023558,1776940238686,-1834.90046588,0.00021258,2]
[421023559,1776940238696,-1834.90046588,0.00021258,2]
[421023560,1776940238706,-1834.90046588,0.00021258,2]
[421023561,1776940238716,-1834.90046588,0.00021258,2]
[421023562,1776940238726,-1851.5813792,0.00021258,2]
[421023563,1776940238736,-1851.5813792,0.00021258,2]
[421023564,1776940238746,-1851.5813792,0.00021258,2]
[421023565,1776940238759,-1851.5813792,0.00021258,2]
[421023566,1776940238769,-1851.5813792,0.00021258,2]
[421023567,1776940238780,-1851.5813792,0.00021258,2]
[421023568,1776940238790,-1851.5813792,0.00021258,2]
[421023569,1776940238801,-1851.5813792,0.00021258,2]
[421023570,1776940238811,-1851.5813792,0.00021258,2]
[421023571,1776940238821,-2207.65472131,0.00021258,2]
[421023572,1776940238831,-500.0,0.00021258,2]
[421023573,1776940238841,-500.0,0.00021258,2]
[421023574,1776940238852,-500.0,0.00021258,2]
[421023575,1776940238862,-500.0,0.00021258,2]
[421023576,1776940238872,-500.0,0.00021258,2]
[421023577,1776940238882,-500.0,0.00021258,2]
[421023578,1776940238894,-500.0,0.00021258,2]
[421023579,1776940238904,-500.0,0.00021258,2]
[421023580,1776940238914,-500.0,0.00021258,2]
[421023581,1776940238924,-500.0,0.00021258,2]
[421023582,1776940238933,-500.0,0.00021258,2]
[421023583,1776940238943,-500.0,0.00021258,2]
[421023584,1776940238953,-500.0,0.00021258,2]
[421023585,1776940238962,-500.0,0.00021258,2]
[421023586,1776940238972,-500.0,0.00021258,2]
[421023587,1776940238982,-500.0,0.00021258,2]
[421023588,1776940238992,-126.73912219,0.00021258,2]
[421023589,1776940239007,-373.26087781,0.00021258,2]
[421023590,1776940239016,-500.0,0.00021258,2]
[421023591,1776940239026,-301.9510479,0.00021258,2]
[421023592,1776940239038,-198.0489521,0.00021258,2]
[421023593,1776940239048,-500.0,0.00021258,2]
[421023594,1776940239057,-500.0,0.00021258,2]
[421023595,1776940239067,-36.9452569,0.00021258,2]
[421023596,1776940239083,-463.0547431,0.00021258,2]
[421023597,1776940239093,-184.7552569,0.00021258,2]
[421023598,1776940239105,-315.2447431,0.00021258,2]
[421023599,1776940239115,-500.0,0.00021258,2]
[421023600,1776940239124,-409.61396716,0.00021258,2]
[421023601,1776940239136,-90.38603284,0.00021258,2]
[421023602,1776940239146,-500.0,0.00021258,2]
[421023603,1776940239156,-500.0,0.00021258,2]
[421023604,1776940239166,-500.0,0.00021258,2]
[421023605,1776940239176,-500.0,0.00021258,2]
[421023606,1776940239186,-500.0,0.00021258,2]
[421023607,1776940239196,-500.0,0.00021258,2]
[421023608,1776940239206,-500.0,0.00021258,2]
[421023609,1776940239216,-500.0,0.00021258,2]
[421023610,1776940239227,-500.0,0.00021258,2]
[421023611,1776940239236,-500.0,0.00021258,2]
[421023612,1776940239247,-500.0,0.00021258,2]
[421023613,1776940239256,-403.16920023,0.00021258,2]
[421023614,1776940239266,-500.0,0.00021258,2]
[421023615,1776940239276,-500.0,0.00021258,2]
[421023616,1776940239285,-500.0,0.00021258,2]
[421023617,1776940239295,-500.0,0.00021258,2]
[421023618,1776940239305,-500.0,0.00021258,2]
[421023619,1776940239315,-500.0,0.00021258,2]
[421023620,1776940239325,-500.0,0.00021258,2]
[421023621,1776940239334,-500.0,0.00021258,2]
[421023622,1776940239344,-500.0,0.00021258,2]
[421023623,1776940239353,-265.02677196,0.00021258,2]
[421023624,1776940239363,-500.0,0.00021258,2]
[421023625,1776940239372,-500.0,0.00021258,2]
[421023626,1776940239382,-282.25073197,0.00021258,2]
[421023627,1776940239391,-500.0,0.00021258,2]
[421023628,1776940239401,-120431.74417967,0.00021259,2]
[421023629,1776940239411,-26892.03940498,0.00021292,2]
[421023630,1776940239420,-729.95317677,0.000213,2]
[421023631,1776940239429,-1688.17968922,0.000213,3]
[421023632,1776940239439,-525.23,0.00021324,2]
[421023633,1776940239448,-338.863,0.00021324,2]
[421023634,1776940239458,-206.8523446,0.00021344,2]
[421023635,1776940239469,-500.0,0.00021358,2]
[421023636,1776940239478,-12853.6855634,0.00021359,2]
[421023637,1776940239488,-20678.426935,0.00021359,2]
[421023638,1776940239498,-2587.458041,0.00021359,2]
[421023639,1776940239508,-152.0,0.00021363,7]
[421023640,1776940239518,-152.0,0.00021363,7]
[421023641,1776940239527,-152.0,0.00021363,7]
[421023642,1776940239537,-152.0,0.00021363,7]
[421023643,1776940239547,-151.0,0.0002138,2]
[421023644,1776940239556,-151.0,0.0002138,2]
[421023645,1776940239566,-151.0,0.0002138,2]
[421023646,1776940239575,-151.0,0.0002138,2]
[421023647,1776940239584,-151.0,0.0002138,2]
[421023648,1776940239594,-154.394444,0.0002138,2]
[421023649,1776940239604,-151.0,0.00021391,2]
[421023650,1776940239614,-151.0,0.00021391,2]
[421023651,1776940239623,-151.0,0.00021392,2]
[421023652,1776940239633,-151.0,0.00021392,2]
[421023653,1776940239642,-207.711051,0.00021393,2]
[421023654,1776940239652,-207.711051,0.00021393,2]
[421023655,1776940239662,-207.711051,0.00021393,2]
[421023656,1776940239672,-207.711051,0.00021393,2]
[421023657,1776940239681,-207.711051,0.00021393,2]
[421023658,1776940239691,-207.711051,0.00021393,2]
[421023659,1776940239700,-207.711051,0.00021393,2]
[421023660,1776940239710,-207.711051,0.00021393,2]
[421023661,1776940239719,-151.0,0.00021393,2]
[421023662,1776940239728,-151.0,0.00021393,2]
[421023663,1776940239737,-151.0,0.00021393,2]
[421023664,1776940239747,-239.986488,0.00021393,2]
[421023665,1776940239756,-151.0,0.00021393,2]
[421023666,1776940239765,-151.0,0.00021393,2]
[421023667,1776940239775,-151.0,0.00021394,2]
[421023668,1776940239784,-151.0,0.00021394,2]
[421023669,1776940239793,-151.0,0.00021394,2]
[421023670,1776940239802,-151.0,0.00021394,2]
[421023671,1776940239811,-151.0,0.00021394,2]
[421023672,1776940239820,-151.0,0.00021394,2]
[421023673,1776940239830,-151.0,0.00021394,2]
[421023674,1776940239839,-151.0,0.00021395,2]
[421023675,1776940239848,-151.0,0.00021395,2]
[421023676,1776940239858,-151.0,0.00021395,2]
[421023677,1776940239867,-207.711051,0.00021395,2]
[421023678,1776940239876,-207.711051,0.00021395,2]
[421023679,1776940239886,-207.711051,0.00021395,2]
[421023680,1776940239895,-207.711051,0.00021395,2]
[421023681,1776940239905,-152.683047,0.00021395,2]
[421023682,1776940239914,-151.0,0.000214,2]
[421023683,1776940239923,-151.0,0.000214,2]
[421023684,1776940239932,-207.711051,0.000214,2]
[421023686,1776940239941,-207.711051,0.000214,2]
[421023687,1776940239950,-207.711051,0.000214,2]
[421023689,1776940239959,-207.711051,0.000214,2]
[421023691,1776940239969,-500.0,0.00021494,2]
[421023692,1776940239979,-1000.0,0.00021495,2]
[421023693,1776940239988,-1002.24411551,0.00021495,2]
[421023694,1776940239998,-206.8523446,0.00021496,2]
[421023695,1776940240007,-151.0,0.00021496,2]
[421023696,1776940240017,-152.0,0.00021498,7]
[421023697,1776940240026,-1096.90249621,0.000215,2]
[421023698,1776940240036,-500.0,0.0002151,2]
[421023699,1776940240046,-151.0,0.00021512,2]
[421023700,1776940240056,-207.711051,0.00021512,2]
[421023701,1776940240065,-207.711051,0.00021512,2]
[421023702,1776940240075,-141.85846815,0.00021512,2]
[421023703,1776940240088,-65.85258285,0.00021512,2]
[421023704,1776940240097,-207.711048,0.00021512,2]
[421023705,1776940240106,-151.0,0.00021512,2]
[421023706,1776940240115,-151.0,0.00021512,2]
[421023707,1776940240125,-573.62532337,0.00021512,2]
[421023708,1776940240135,-17496.83631905,0.00021512,2]
[421023757,1776940246780,-152.0,0.0001972,7]
[421023758,1776940246791,-152.0,0.0001972,7]
[421023759,1776940246801,-152.0,0.00021263,7]
[421023760,1776940246811,-50.57363793,0.00021263,7]
[421023761,1776940246830,-101.42636207,0.00021263,7]
[421023763,1776940246839,-6116.04166623,0.00021512,2]
[421023765,1776940246852,-23785.48540802,0.00021512,2]
[421023766,1776940246908,-2601.76745271,0.00021512,2]
[421023767,1776940246918,-3651.91048785,0.00021512,3]
[421023768,1776941190101,-171.02632281,0.00013689,43]
[421023769,1776941347138,-4.43367719,0.00013689,43]
[421023770,1776941347160,-1000.0,0.00013699,2]
[421023771,1776941347183,-150.0,0.00015073,2]
[421023772,1776941347207,-82.02904217,0.00017073,2]
[421023773,1776941371105,-536.47726885,0.00014973,2]
[421023808,1776941432337,-2462.24156559,0.00014973,2]
[421023810,1776941432348,-276.83457169,0.00016023,2]
[421023812,1776941432358,-209.83635501,0.00018392,2]
[421023814,1776941432368,-2033.09,0.00019,6]
[421023815,1776941432379,-178.0,0.00019397,3]
[421023817,1776941432390,-1200.0,0.00019998,2]
[421023819,1776941432401,-300.0,0.00019999,2]
[421023821,1776941432411,-191.0,0.0002,2]
[421023823,1776941432421,-4713.99750771,0.0002,2]
[421023825,1776941432432,-7790.72692469,0.0002,2]
[421023827,1776941432442,-166.0,0.0002,2]
[421023830,1776941432451,-312.0,0.0002,2]
[421023832,1776941432461,-172.0,0.0002,2]
[421023834,1776941432470,-904.0,0.0002,2]
[421023836,1776941432480,-15739.47225036,0.0002,2]
[421023838,1776941432489,-184.0,0.00020889,2]
[421023841,1776941432498,-17607.89,0.00020945,10]
[421023843,1776941432508,-500.0,0.00020954,2]
[421023846,1776941432517,-500.0,0.00020954,2]
[421023849,1776941432526,-500.0,0.00020954,2]
[421023852,1776941432536,-500.0,0.00020954,2]
[421023855,1776941432547,-500.0,0.00020954,2]
[421023857,1776941432557,-500.0,0.00020954,2]
[421023859,1776941432567,-500.0,0.00020954,2]
[421023861,1776941432576,-500.0,0.00020954,2]
[421023863,1776941432586,-500.0,0.00020954,2]
[421023865,1776941432595,-500.0,0.00020954,2]
[421023867,1776941432606,-500.0,0.00020954,2]
[421023869,1776941432616,-500.0,0.00020954,2]
[421023871,1776941432626,-500.0,0.00020954,2]
[421023873,1776941432635,-500.0,0.00020954,2]
[421023875,1776941432644,-500.0,0.00020954,2]
[421023877,1776941432654,-357.99197585,0.00020954,2]
[421023879,1776941432663,-500.0,0.00020954,2]
[421023881,1776941432672,-500.0,0.00020954,2]
[421023883,1776941432681,-400.0,0.00020954,2]
[421023885,1776941432690,-388.16284826,0.00020954,2]
[421023887,1776941432700,-500.0,0.00020954,2]
[421023889,1776941432709,-500.0,0.00020954,2]
[421023891,1776941432718,-500.0,0.00020954,2]
[421023893,1776941432728,-500.0,0.00020954,2]
[421023895,1776941432737,-500.0,0.00020954,2]
[421023897,1776941432746,-500.0,0.00020954,2]
[421023899,1776941432755,-500.0,0.00020954,2]
[421023901,1776941432764,-500.0,0.00020954,2]
[421023903,1776941432774,-500.0,0.00020954,2]
[421023905,1776941432783,-500.0,0.00020954,2]
[421023907,1776941432793,-500.0,0.00020954,2]
[421023909,1776941432802,-500.0,0.00020954,2]
[421023911,1776941432811,-500.0,0.00020954,2]
[421023913,1776941432820,-500.0,0.00020954,2]
[421023915,1776941432829,-500.0,0.00020954,2]
[421023917,1776941432838,-500.0,0.00020954,2]
[421023919,1776941432848,-500.0,0.00020954,2]
[421023921,1776941432857,-500.0,0.00020954,2]
[421023923,1776941432866,-500.0,0.00020954,2]
[421023925,1776941432875,-500.0,0.00020954,2]
[421023927,1776941432885,-500.0,0.00020954,2]
[421023929,1776941432894,-500.0,0.00020954,2]
[421023930,1776941432903,-500.0,0.00020954,2]
[421023931,1776941432913,-407.0703431,0.00020954,2]
[421023932,1776941432922,-500.0,0.00020954,2]
[421023934,1776941432932,-500.0,0.00020954,2]
[421023936,1776941432942,-500.0,0.00020954,2]
[421023938,1776941432952,-500.0,0.00020954,2]
[421023940,1776941432963,-500.0,0.00020954,2]
[421023942,1776941432972,-500.0,0.00020954,2]
[421023944,1776941432982,-500.0,0.00020954,2]
[421023946,1776941432992,-500.0,0.00020954,2]
[421023948,1776941433001,-500.0,0.00020954,2]
[421023950,1776941433011,-500.0,0.00020954,2]
[421023951,1776941433021,-500.0,0.00020954,2]
[421023952,1776941433032,-500.0,0.00020954,2]
[421023953,1776941433042,-500.0,0.00020954,2]
[421023954,1776941433051,-500.0,0.00020954,2]
[421023955,1776941433060,-500.0,0.00020954,2]
[421023956,1776941433348,-598.29622465,0.00020954,2]
[421023957,1776941433386,-500.0,0.00020954,2]
[421023958,1776941433395,-500.0,0.00020954,2]
[421023959,1776941433405,-500.0,0.00020954,2]
[421023960,1776941433414,-500.0,0.00020954,2]
[421023961,1776941433424,-500.0,0.00020954,2]
[421023962,1776941433434,-500.0,0.00020954,2]
[421023963,1776941433444,-500.0,0.00020954,2]
[421023964,1776941433455,-155.0,0.00020954,2]
[421023965,1776941433465,-1544.49753444,0.00020955,2]
[421023966,1776941433474,-1544.49753444,0.00020955,2]
[421023967,1776941433486,-1544.49753444,0.00020955,2]
[421023968,1776941433495,-1544.49753444,0.00020955,2]
[421023969,1776941433506,-1544.49753444,0.00020955,2]
[421023970,1776941433517,-1544.49753444,0.00020955,2]
[421023971,1776941433530,-1544.49753444,0.00020955,2]
[421023972,1776941433544,-488.90782906,0.00020955,2]
[421023973,1776941433555,-1544.49753444,0.00020955,2]
[421023974,1776941433567,-229.4169188,0.00020955,2]
[421023975,1776941433577,-1544.49753444,0.00020955,2]
[421023976,1776941433587,-1544.49753444,0.00020955,2]
[421023977,1776941433597,-1544.49753444,0.00020955,2]
[421023978,1776941433607,-1544.49753444,0.00020955,2]
[421023979,1776941433617,-1544.49753444,0.00020955,2]
[421023980,1776941433627,-1544.49753444,0.00020955,2]
[421023981,1776941433637,-1544.49753444,0.00020955,2]
[421023982,1776941433646,-1544.49753444,0.00020955,2]
[421023983,1776941433656,-1621.72241115,0.00020955,2]
[421023984,1776941433666,-1621.72241115,0.00020955,2]
[421023985,1776941433676,-1621.72241115,0.00020955,2]
[421023986,1776941433686,-1621.72241115,0.00020955,2]
[421023987,1776941433695,-1621.72241115,0.00020955,2]
[421023988,1776941433705,-1621.72241115,0.00020955,2]
[421023989,1776941433715,-1621.72241115,0.00020955,2]
[421023990,1776941433725,-1621.72241115,0.00020955,2]
[421023991,1776941433735,-25000.06542301,0.00020956,2]
[421023992,1776941433744,-33245.98390743,0.00020956,2]
[421023993,1776941433880,-500.0,0.00020954,2]
[421023994,1776941433890,-2819.37394691,0.00020956,2]
[421024007,1776941438590,-500.0,0.00020954,2]
[421024008,1776941438600,-500.0,0.00020954,2]
[421024009,1776941438609,-500.0,0.00020954,2]
[421024010,1776941438618,-35791.34888961,0.00020956,2]
[421024011,1776941438749,-1042.37256033,0.00020956,2]
[421024012,1776941438761,-2701.67071023,0.00020956,2]
[421024013,1776941438772,-101511.5738427,0.00020956,2]
[421024027,1776941440920,-459.34763194,0.00020956,2]
[421024047,1776941443757,-589.37338563,0.00020956,2]
[421024053,1776941446730,-14301.95059916,0.00020956,2]
[421024059,1776942062728,-1200.13498707,7.449e-05,2]
[421024060,1776942062759,-1830.66758697,7.449e-05,2]
[421024061,1776942091929,-39.2024933,7.375e-05,2]
[421024062,1776942091951,-1121.73000047,7.375e-05,2]
[421024063,1776942152428,18996.5346491,0.00024657,120]
[421024067,1776942417802,268.0,0.00023,120]
[421024071,1776942552444,-171.92388563,7.156e-05,10]
[421024072,1776942552472,-5000.0,7.228e-05,10]
[421024073,1776942552502,-150.0,7.338e-05,2]
[421024074,1776942552536,-159.7,7.449e-05,2]
[421024075,1776942552580,-1692.81487939,7.6e-05,2]
[421024076,1776942552629,-165.69210798,9.338e-05,2]
[421024077,1776942552661,-500.0,9.415e-05,2]
[421024078,1776942552689,-300.0,9.796e-05,2]
[421024079,1776942552755,-1200.0,9.797e-05,2]
[421024080,1776942552785,-300.0,9.798e-05,2]
[421024081,1776942552819,-300.0,9.798e-05,2]
[421024082,1776942552865,-300.0,9.798e-05,2]
[421024083,1776942552915,-361.4549499,0.0001,2]